fUST/lending_fUST_20250824
["ID","MTS","AMOUNT","RATE_DAILY","PERIOD"]
[381072716,1755996658677,-1401.27,0.00049315,120]
[381072717,1755996658686,-792.94,0.00049315,120]
[381072718,1755996658695,-480.0,0.00049315,120]
[381072719,1755996658704,-480.0,0.00049315,120]
[381072720,1755996658714,-480.0,0.00049315,120]
[381072721,1755996658723,-480.0,0.00049315,120]
[381072722,1755996658732,-480.0,0.00049315,120]
[381072723,1755996658742,-480.0,0.00049315,120]
[381072724,1755996658752,-500.0,0.00049315,120]
[381072725,1755996658761,-508.00155144,0.00049315,120]
[381072726,1755996658770,-480.0,0.00049315,120]
[381072727,1755996658780,-480.0,0.00049315,120]
[381072728,1755996658789,-990.29,0.00049315,120]
[381072729,1755996658799,-480.0,0.00049315,120]
[381072730,1755996658808,-516.45,0.00049315,120]
[381072731,1755996658817,-706.28,0.00049315,120]
[381072732,1755996658827,-461.49849457,0.00049315,120]
[381072733,1755996658836,-6241.26,0.00049315,120]
[381072734,1755996658846,-480.0,0.00049315,120]
[381072735,1755996658855,-896.82,0.00049315,120]
[381072736,1755996658864,-500.0,0.00049315,14]
[381072737,1755996658873,-480.0,0.00049315,120]
[381072738,1755996658883,-681.48,0.00049315,120]
[381072739,1755996658894,-1308.34,0.00049315,120]
[381072740,1755996658903,-480.0,0.00049315,120]
[381072741,1755996658913,-480.0,0.00049315,120]
[381072742,1755996658922,-480.0,0.00049315,120]
[381072743,1755996658931,-480.0,0.00049315,120]
[381072744,1755996658941,-480.0,0.00049315,120]
[381072745,1755996658950,-1077.83,0.00049315,120]
[381072746,1755996658965,-580.0816284,0.00049315,120]
[381072747,1755996658974,-480.0,0.00049315,120]
[381072748,1755996658983,-715.85,0.00049315,120]
[381072749,1755996658994,-808.3,0.00049315,120]
[381072750,1755996659004,-480.0,0.00049315,120]
[381072751,1755996659013,-461.28679573,0.00049315,120]
[381072752,1755996659022,-9098.19,0.00049315,120]
[381072753,1755996659032,-822.46,0.00049315,120]
[381072754,1755996659042,-1394.64,0.00049315,120]
[381072755,1755996659053,-480.0,0.00049315,120]
[381072756,1755996659062,-480.0,0.00049315,120]
[381072757,1755996659072,-480.0,0.00049315,120]
[381072758,1755996659081,-480.0,0.00049315,120]
[381072759,1755996659091,-480.0,0.00049315,120]
[381072760,1755996659101,-3920.85,0.00049315,120]
[381072761,1755996659111,-480.0,0.00049315,120]
[381072762,1755996659121,-460.72706651,0.00049315,120]
[381072763,1755996659130,-7616.99,0.00049315,120]
[381072764,1755996659140,-480.0,0.00049315,120]
[381072765,1755996659150,-480.0,0.00049315,120]
[381072766,1755996659159,-480.0,0.00049315,120]
[381072767,1755996659169,-480.0,0.00049315,120]
[381072768,1755996659179,-480.0,0.00049315,120]
[381072769,1755996659189,-3208.98,0.00049315,120]
[381072770,1755996659198,-480.0,0.00049315,120]
[381072771,1755996659208,-480.0,0.00049315,120]
[381072772,1755996659218,-862.02,0.00049315,120]
[381072773,1755996659227,-792.94,0.00049315,120]
[381072774,1755996659237,-480.0,0.00049315,120]
[381072775,1755996659247,-761.5,0.00049315,120]
[381072776,1755996659256,-480.0,0.00049315,120]
[381072777,1755996659266,-480.0,0.00049315,120]
[381072778,1755996659275,-1947.61,0.00049315,120]
[381072779,1755996659284,-480.0,0.00049315,120]
[381072780,1755996659294,-570.8,0.00049315,120]
[381072781,1755996659303,-480.0,0.00049315,120]
[381072782,1755996659312,-480.0,0.00049315,120]
[381072783,1755996659322,-1021.64,0.00049315,120]
[381072784,1755996659331,-2616.17,0.00049315,120]
[381072785,1755996659347,-480.0,0.00049315,120]
[381072786,1755996659357,-741.84,0.00049315,120]
[381072787,1755996659366,-480.0,0.00049315,120]
[381072788,1755996659376,-480.0,0.00049315,120]
[381072789,1755996659386,-480.0,0.00049315,120]
[381072790,1755996659395,-480.0,0.00049315,120]
[381072791,1755996659405,-480.0,0.00049315,120]
[381072792,1755996659414,-1673.04,0.00049315,120]
[381072793,1755996659423,-534.97537767,0.00049315,120]
[381072794,1755996659433,-461.73344099,0.00049315,120]
[381072795,1755996659443,-774.55,0.00049315,120]
[381072796,1755996659453,-774.55,0.00049315,120]
[381072797,1755996659463,-480.0,0.00049315,120]
[381072798,1755996659473,-774.55,0.00049315,120]
[381072799,1755996659482,-774.55,0.00049315,120]
[381072800,1755996659492,-774.55,0.00049315,120]
[381072801,1755996659502,-480.0,0.00049315,120]
[381072802,1755996659512,-774.55,0.00049315,120]
[381072803,1755996659522,-774.55,0.00049315,120]
[381072804,1755996659532,-634.17,0.00049315,120]
[381072805,1755996659541,-774.55,0.00049315,120]
[381072806,1755996659552,-480.0,0.00049315,120]
[381072807,1755996659562,-774.55,0.00049315,120]
[381072808,1755996659572,-774.55,0.00049315,120]
[381072809,1755996659581,-480.0,0.00049315,120]
[381072810,1755996659591,-774.55,0.00049315,120]
[381072811,1755996659600,-480.0,0.00049315,120]
[381072812,1755996659610,-774.55,0.00049315,120]
[381072813,1755996659619,-774.55,0.00049315,120]
[381072814,1755996659628,-480.0,0.00049315,5]
[381072815,1755996659638,-774.55,0.00049315,120]
[381072816,1755996659648,-774.55,0.00049315,120]
[381072817,1755996659657,-723.51,0.00049315,120]
[381072818,1755996659667,-774.55,0.00049315,120]
[381072819,1755996659676,-480.52267498,0.00049315,120]
[381072820,1755996659685,-774.55,0.00049315,120]
[381072821,1755996659695,-774.55,0.00049315,120]
[381072822,1755996659704,-480.0,0.00049315,120]
[381072823,1755996659713,-774.55,0.00049315,120]
[381072824,1755996659722,-774.55,0.00049315,120]
[381072825,1755996659731,-774.55,0.00049315,120]
[381072826,1755996659741,-774.55,0.00049315,120]
[381072827,1755996659751,-774.55,0.00049315,120]
[381072828,1755996659760,-774.74788106,0.00049315,120]
[381072829,1755996659769,-500.0,0.00049315,120]
[381072830,1755996659778,-500.0,0.00049315,120]
[381072831,1755996659787,-922.87,0.00049315,120]
[381072832,1755996659797,-500.0,0.00049315,120]
[381072833,1755996659806,-500.0,0.00049315,120]
[381072834,1755996659816,-500.0,0.00049315,120]
[381072835,1755996659826,-480.0,0.00049315,120]
[381072836,1755996659835,-649.29456734,0.00049315,120]
[381072837,1755996659845,-573.48,0.00049315,120]
[381072838,1755996659855,-480.0,0.00049315,120]
[381072839,1755996659864,-480.0,0.00049315,120]
[381072840,1755996659874,-718.38,0.00049315,120]
[381072841,1755996659883,-480.0,0.00049315,120]
[381072842,1755996659893,-482.74028875,0.00049315,120]
[381072843,1755996659902,-480.0,0.00049315,120]
[381072844,1755996659911,-480.0,0.00049315,120]
[381072845,1755996659921,-480.0,0.00049315,120]
[381072846,1755996659930,-1019.51,0.00049315,120]
[381072847,1755996659939,-480.0,0.00049315,120]
[381072848,1755996659948,-507.86,0.00049315,120]
[381072849,1755996659962,-480.0,0.00049315,120]
[381072850,1755996659971,-982.45,0.00049315,120]
[381072851,1755996659981,-480.0,0.00049315,120]
[381072852,1755996659991,-480.68893409,0.00049315,120]
[381072853,1755996660000,-480.0,0.00049315,120]
[381072854,1755996660009,-1000.0,0.00049315,120]
[381072855,1755996660019,-1002.53,0.00049315,120]
[381072856,1755996660029,-972.65,0.00049315,120]
[381072857,1755996660039,-480.0,0.00049315,120]
[381072858,1755996660049,-480.0,0.00049315,120]
[381072859,1755996660059,-480.54269731,0.00049315,120]
[381072860,1755996660466,-1203.15730269,0.00049315,120]
[381072861,1755996660476,-480.0,0.00049315,120]
[381072862,1755996660487,-4519.18,0.00049315,120]
[381072863,1755996660497,-1265.63,0.00049315,120]
[381072864,1755996660508,-480.0,0.00049315,120]
[381072865,1755996660518,-525.85,0.00049315,120]
[381072866,1755996660527,-480.0,0.00049315,120]
[381072867,1755996660536,-480.0,0.00049315,120]
[381072868,1755996660545,-900.47,0.00049315,120]
[381072869,1755996660554,-480.0,0.00049315,120]
[381072870,1755996660563,-480.0,0.00049315,120]
[381072871,1755996660572,-480.0,0.00049315,120]
[381072872,1755996660582,-480.0,0.00049315,120]
[381072873,1755996660591,-480.0,0.00049315,120]
[381072874,1755996660601,-480.0,0.00049315,120]
[381072875,1755996660610,-345.58303723,0.00049315,120]
[381072876,1755996660619,-542.27,0.00049315,120]
[381072877,1755996660628,-461.15874138,0.00049315,120]
[381072878,1755996660637,-480.0,0.00049315,120]
[381072879,1755996660646,-516.28,0.00049315,120]
[381072880,1755996660655,-1299.53,0.00049315,120]
[381072881,1755996660664,-480.0,0.00049315,120]
[381072882,1755996660673,-533.48,0.00049315,120]
[381072883,1755996660683,-480.61987616,0.00049315,120]
[381072884,1755996660692,-1071.15,0.00049315,120]
[381072885,1755996660701,-584.96,0.00049315,120]
[381072886,1755996660710,-480.0,0.00049315,120]
[381072887,1755996660719,-480.0,0.00049315,120]
[381072888,1755996660728,-480.0,0.00049315,120]
[381072889,1755996660737,-614.53,0.00049315,120]
[381072890,1755996660746,-1541.58,0.00049315,120]
[381072891,1755996660755,-480.0,0.00049315,30]
[381072892,1755996660764,-480.0,0.00049315,120]
[381072893,1755996660773,-2668.63,0.00049315,120]
[381072894,1755996660782,-480.0,0.00049315,120]
[381072895,1755996660792,-480.0,0.00049315,120]
[381072896,1755996660801,-1290.5,0.00049315,120]
[381072897,1755996660810,-1743.87,0.00049315,120]
[381072898,1755996660819,-480.0,0.00049315,120]
[381072899,1755996660828,-772.3,0.00049315,120]
[381072900,1755996660838,-480.0,0.00049315,120]
[381072901,1755996660847,-1388.14,0.00049315,120]
[381072902,1755996660857,-1257.78,0.00049315,120]
[381072903,1755996660867,-480.0,0.00049315,120]
[381072904,1755996660876,-480.45735127,0.00049315,120]
[381072905,1755996660886,-1032.02,0.00049315,120]
[381072906,1755996660897,-480.0,0.00049315,120]
[381072907,1755996660906,-480.0,0.00049315,120]
[381072908,1755996660915,-3405.09,0.00049315,120]
[381072909,1755996660925,-610.23769521,0.00049315,120]
[381072910,1755996660934,-480.0,0.00049315,120]
[381072911,1755996660943,-1030.47,0.00049315,120]
[381072912,1755996660953,-480.0,0.00049315,120]
[381072913,1755996660965,-978.17,0.00049315,120]
[381072914,1755996660974,-494.09027208,0.00049315,120]
[381072915,1755996660983,-1256.06,0.00049315,30]
[381072916,1755996660992,-480.0,0.00049315,120]
[381072917,1755996661002,-481.40556532,0.00049315,120]
[381072918,1755996661011,-480.0,0.00049315,120]
[381072919,1755996661021,-775.66,0.00049315,120]
[381072920,1755996661031,-5158.02,0.00049315,120]
[381072921,1755996661040,-480.0,0.00049315,120]
[381072922,1755996661049,-656.36,0.00049315,120]
[381072923,1755996661058,-480.0,0.00049315,120]
[381072924,1755996661067,-480.0,0.00049315,120]
[381072925,1755996661076,-691.57,0.00049315,120]
[381072926,1755996661085,-480.0,0.00049315,120]
[381072927,1755996661094,-480.0,0.00049315,120]
[381072928,1755996661103,-1319.13,0.00049315,120]
[381072929,1755996661112,-480.0,0.00049315,120]
[381072930,1755996661121,-1361.96,0.00049315,120]
[381072931,1755996661132,-544.23,0.00049315,120]
[381072932,1755996661142,-1361.96,0.00049315,120]
[381072933,1755996661151,-480.0,0.00049315,120]
[381072934,1755996661161,-190.33153819,0.00049315,120]
[381072935,1755996661170,-1361.96,0.00049315,120]
[381072936,1755996661180,-1361.96,0.00049315,120]
[381072937,1755996661189,-1361.96,0.00049315,120]
[381072938,1755996661199,-1361.96,0.00049315,120]
[381072939,1755996661208,-480.0,0.00049315,120]
[381072940,1755996661217,-1361.96,0.00049315,120]
[381072941,1755996661227,-462.47203191,0.00049315,120]
[381072942,1755996661237,-1361.96,0.00049315,120]
[381072943,1755996661248,-1361.96,0.00049315,120]
[381072944,1755996661257,-1361.96,0.00049315,120]
[381072945,1755996661267,-1361.96,0.00049315,120]
[381072946,1755996661276,-1361.96,0.00049315,120]
[381072947,1755996661286,-1361.96,0.00049315,120]
[381072948,1755996661296,-1361.96,0.00049315,120]
[381072949,1755996661305,-2712.33,0.00049315,120]
[381072950,1755996661314,-1925.61,0.00049315,120]
[381072951,1755996661324,-1361.96,0.00049315,120]
[381072952,1755996661333,-1361.96,0.00049315,120]
[381072953,1755996661343,-480.0,0.00049315,120]
[381072954,1755996661352,-1361.96,0.00049315,120]
[381072955,1755996661362,-1361.96,0.00049315,120]
[381072956,1755996661372,-1361.96,0.00049315,120]
[381072957,1755996661383,-480.0,0.00049315,120]
[381072958,1755996661393,-1661.49,0.00049315,120]
[381072959,1755996661403,-1361.96,0.00049315,120]
[381072960,1755996661412,-1361.96,0.00049315,120]
[381072961,1755996661421,-480.0,0.00049315,120]
[381072962,1755996661431,-1361.96,0.00049315,120]
[381072963,1755996661446,-1361.96,0.00049315,120]
[381072964,1755996661456,-480.0,0.00049315,120]
[381072965,1755996661465,-1362.02673865,0.00049315,120]
[381072966,1755996661474,-480.0,0.00049315,120]
[381072967,1755996661484,-1090.64,0.00049315,120]
[381072968,1755996661494,-480.0,0.00049315,120]
[381072969,1755996661503,-1059.75,0.00049315,120]
[381072970,1755996661513,-480.0,0.00049315,120]
[381072971,1755996661523,-1943.29,0.00049315,120]
[381072972,1755996661532,-1868.82,0.00049315,120]
[381072973,1755996661541,-480.0,0.00049315,120]
[381072974,1755996661551,-480.0,0.00049315,120]
[381072975,1755996661560,-480.0,0.00049315,120]
[381072976,1755996661570,-480.0,0.00049315,120]
[381072977,1755996661580,-462.4170831,0.00049315,120]
[381072978,1755996661589,-461.0650774,0.00049315,120]
[381072979,1755996661599,-1265.06,0.00049315,120]
[381072980,1755996661608,-520.26,0.00049315,120]
[381072981,1755996661617,-480.0,0.00049315,120]
[381072982,1755996661627,-259.45600196,0.00049315,120]
[381072983,1755996661636,-480.0,0.00049315,120]
[381072984,1755996661647,-480.0,0.00049315,120]
[381072985,1755996661656,-480.0,0.00049315,120]
[381072986,1755996661665,-480.0,0.00049315,120]
[381072987,1755996661675,-4077.46,0.00049315,120]
[381072988,1755996661684,-481.0731712,0.00049315,120]
[381072989,1755996661694,-111.56410004,0.00049315,120]
[381072990,1755996661712,-368.43589996,0.00049315,120]
[381072991,1755996661722,-480.0,0.00049315,120]
[381072992,1755996661732,-113.10744197,0.00049315,120]
[381072993,1755996661744,-482.00255803,0.00049315,120]
[381072994,1755996661754,-2100.84,0.00049315,120]
[381072995,1755996661764,-480.0,0.00049315,120]
[381072996,1755996661774,-480.0,0.00049315,120]
[381072997,1755996661784,-480.0,0.00049315,120]
[381072998,1755996661794,-480.0,0.00049315,120]
[381072999,1755996661804,-480.0,0.00049315,120]
[381073000,1755996661814,-480.0,0.00049315,120]
[381073001,1755996661824,-480.0,0.00049315,120]
[381073002,1755996661834,-904.43,0.00049315,120]
[381073003,1755996661844,-925.62,0.00049315,120]
[381073004,1755996661854,-480.0,0.00049315,120]
[381073005,1755996661863,-574.58,0.00049315,120]
[381073006,1755996661873,-600.42,0.00049315,120]
[381073007,1755996661883,-170.5236218,0.00049315,120]
[381073008,1755996661898,-604.0,0.00049315,120]
[381073009,1755996661910,-479.4363782,0.00049315,120]
[381073010,1755996661919,-480.0,0.00049315,120]
[381073011,1755996661929,-8666.16,0.00049315,120]
[381073012,1755996661939,-4487.73,0.00049315,120]
[381073013,1755996661950,-480.0,0.00049315,120]
[381073014,1755996661967,-29.0207722,0.00049315,120]
[381073015,1755996662051,-465.4292278,0.00049315,120]
[381073016,1755996662062,-480.0,0.00049315,120]
[381073017,1755996662075,-480.77972095,0.00049315,120]
[381073018,1755996662093,-499.6656449,0.00049315,120]
[381073019,1755996662111,-480.0,0.00049315,120]
[381073020,1755996662120,-602.73,0.00049315,120]
[381073021,1755996662130,-480.0,0.00049315,120]
[381073022,1755996662141,-480.0,0.00049315,120]
[381073023,1755996662151,-480.0,0.00049315,120]
[381073024,1755996662160,-643.53,0.00049315,120]
[381073025,1755996662171,-480.0,0.00049315,120]
[381073026,1755996662180,-2087.89,0.00049315,120]
[381073027,1755996662190,-480.0,0.00049315,120]
[381073028,1755996662199,-480.0,0.00049315,120]
[381073029,1755996662209,-480.0,0.00049315,120]
[381073030,1755996662218,-480.0,0.00049315,120]
[381073031,1755996662228,-480.0,0.00049315,120]
[381073032,1755996662244,-480.0,0.00049315,120]
[381073033,1755996662257,-480.0,0.00049315,120]
[381073034,1755996662266,-480.0,0.00049315,2]
[381073035,1755996662276,-638.37,0.00049315,120]
[381073036,1755996662285,-899.3,0.00049315,120]
[381073037,1755996662295,-480.0,0.00049315,120]
[381073038,1755996662304,-480.0,0.00049315,120]
[381073039,1755996662314,-480.0,0.00049315,14]
[381073040,1755996662324,-1226.69,0.00049315,120]
[381073041,1755996662334,-480.0,0.00049315,120]
[381073042,1755996662343,-480.0,0.00049315,120]
[381073043,1755996662353,-480.0,0.00049315,120]
[381073044,1755996662362,-480.46945647,0.00049315,120]
[381073045,1755996662372,-1798.23,0.00049315,120]
[381073046,1755996662381,-446.19186528,0.00049315,120]
[381073047,1755996662391,-993.18,0.00049315,120]
[381073048,1755996662401,-480.0,0.00049315,120]
[381073049,1755996662411,-480.0,0.00049315,120]
[381073050,1755996662421,-480.0,0.00049315,120]
[381073051,1755996662431,-592.18,0.00049315,120]
[381073052,1755996662440,-480.0,0.00049315,120]
[381073053,1755996662452,-480.0,0.00049315,120]
[381073054,1755996662462,-480.0,0.00049315,120]
[381073055,1755996662472,-480.0,0.00049315,120]
[381073056,1755996662482,-480.0,0.00049315,120]
[381073057,1755996662493,-480.0,0.00049315,120]
[381073058,1755996662502,-480.0,0.00049315,120]
[381073059,1755996662512,-480.0,0.00049315,120]
[381073060,1755996662522,-869.87,0.00049315,120]
[381073061,1755996662532,-480.0,0.00049315,120]
[381073062,1755996662543,-480.0,0.00049315,120]
[381073063,1755996662552,-480.0,0.00049315,120]
[381073064,1755996662562,-463.77820393,0.00049315,120]
[381073065,1755996662571,-3008.24,0.00049315,120]
[381073066,1755996662582,-480.0,0.00049315,120]
[381073067,1755996662591,-480.0,0.00049315,120]
[381073068,1755996662601,-1547.19,0.00049315,120]
[381073069,1755996662611,-1885.44,0.00049315,120]
[381073070,1755996662622,-480.0,0.00049315,120]
[381073071,1755996662636,-480.0,0.00049315,120]
[381073072,1755996662646,-480.0,0.00049315,120]
[381073073,1755996662656,-480.0,0.00049315,120]
[381073074,1755996662666,-480.0,0.00049315,7]
[381073075,1755996662675,-480.0,0.00049315,120]
[381073076,1755996662685,-615.26,0.00049315,120]
[381073077,1755996662695,-480.0,0.00049315,120]
[381073078,1755996662704,-598.22,0.00049315,120]
[381073079,1755996662715,-942.7,0.00049315,120]
[381073080,1755996662724,-461.49519789,0.00049315,120]
[381073081,1755996662738,-480.0,0.00049315,120]
[381073082,1755996662748,-480.0,0.00049315,120]
[381073083,1755996662758,-480.0,0.00049315,120]
[381073084,1755996662767,-480.0,0.00049315,120]
[381073085,1755996662777,-460.56831533,0.00049315,120]
[381073086,1755996662787,-3068.71,0.00049315,120]
[381073087,1755996662796,-480.0,0.00049315,120]
[381073088,1755996662806,-480.6773703,0.00049315,120]
[381073089,1755996662815,-501.7,0.00049315,120]
[381073090,1755996662825,-1644.32,0.00049315,120]
[381073091,1755996662835,-774.32,0.00049315,120]
[381073092,1755996662844,-480.0,0.00049315,120]
[381073093,1755996662854,-480.0,0.00049315,120]
[381073094,1755996662864,-480.0,0.00049315,120]
[381073095,1755996662874,-480.0,0.00049315,120]
[381073096,1755996662884,-480.0,0.00049315,120]
[381073097,1755996662894,-480.0,0.00049315,120]
[381073098,1755996662905,-1373.37,0.00049315,120]
[381073099,1755996662914,-3246.9,0.00049315,120]
[381073100,1755996662924,-480.0,0.00049315,120]
[381073101,1755996662934,-480.0,0.00049315,120]
[381073102,1755996662943,-480.0,0.00049315,120]
[381073103,1755996662955,-480.0,0.00049315,120]
[381073104,1755996662971,-1254.83,0.00049315,120]
[381073105,1755996662981,-480.0,0.00049315,120]
[381073106,1755996662990,-480.0,0.00049315,120]
[381073107,1755996663001,-566.72538516,0.00049315,120]
[381073108,1755996663011,-524.63,0.00049315,120]
[381073109,1755996663021,-714.16,0.00049315,120]
[381073110,1755996663032,-480.0,0.00049315,120]
[381073111,1755996663043,-4493.4685722,0.00049315,120]
[381073112,1755996663057,-664.60997044,0.00049315,120]
[381073113,1755996664382,-5888.0,0.00027726,2]
[381073114,1755996664392,-199.0,0.00028433,10]
[381073115,1755996664402,-635.0,0.00029038,2]
[381073116,1755996664411,-191.407562,0.00029303,7]
[381073117,1755996664421,-635.0,0.00029312,2]
[381073118,1755996664432,-191.407562,0.00029393,7]
[381073119,1755996664442,-191.407562,0.00029393,7]
[381073120,1755996664452,-191.407562,0.00029402,7]
[381073121,1755996664461,-191.407562,0.00029402,7]
[381073122,1755996664470,-191.407562,0.00029402,7]
[381073123,1755996664479,-191.407562,0.00029402,7]
[381073124,1755996664489,-191.407562,0.00029403,7]
[381073125,1755996664498,-191.407564,0.00029403,7]
[381073126,1755996664508,-635.0,0.00029586,2]
[381073127,1755996664517,-635.0,0.0002986,2]
[381073128,1755996664526,-635.0,0.00030134,2]
[381073129,1755996664535,-635.0,0.00030408,2]
[381073130,1755996664545,-635.0,0.00030682,2]
[381073131,1755996664554,-635.0,0.00030956,2]
[381073132,1755996664563,-635.0,0.0003123,2]
[381073133,1755996664573,-635.0,0.00031504,2]
[381073134,1755996664582,-635.0,0.00031778,2]
[381073135,1755996664591,-635.0,0.00032052,2]
[381073136,1755996664601,-635.0,0.00032326,2]
[381073137,1755996664610,-635.0,0.000326,2]
[381073138,1755996664619,-635.0,0.00032874,2]
[381073139,1755996664629,-635.0,0.00033148,2]
[381073140,1755996664638,-635.0,0.00033422,2]
[381073141,1755996664649,-635.0,0.00033696,2]
[381073142,1755996664658,-635.0,0.0003397,2]
[381073143,1755996664668,-635.0,0.00034243,2]
[381073144,1755996664677,-635.0,0.00034517,2]
[381073145,1755996664686,-408.0,0.00038098,2]
[381073146,1755996664695,-408.0,0.00041098,2]
[381073147,1755996664704,-408.0,0.00044098,2]
[381073148,1755996664714,-403.362,0.00047098,2]
[381073149,1755996664723,-3475.90145736,0.00049315,120]
[381073150,1755996664733,-480.0,0.00049315,120]
[381073151,1755996664742,-760.73,0.00049315,120]
[381073152,1755996664751,-157.84114781,0.00049315,120]
[381073153,1755996664760,-480.0,0.00049315,120]
[381073154,1755996664770,-480.0,0.00049315,120]
[381073155,1755996664779,-1141.72,0.00049315,120]
[381073156,1755996664788,-1274.92,0.00049315,120]
[381073157,1755996664798,-922.53,0.00049315,120]
[381073158,1755996664807,-10711.56,0.00049315,120]
[381073159,1755996664817,-2022.1,0.00049315,120]
[381073160,1755996664826,-480.0,0.00049315,120]
[381073161,1755996664836,-480.0,0.00049315,120]
[381073162,1755996664845,-1019.31,0.00049315,120]
[381073163,1755996664855,-480.0,0.00049315,120]
[381073164,1755996664865,-3134.63,0.00049315,120]
[381073165,1755996664875,-480.0,0.00049315,120]
[381073166,1755996664884,-1025.64,0.00049315,120]
[381073167,1755996664894,-4153.6,0.00049315,120]
[381073168,1755996664905,-539.36564777,0.00049315,120]
[381073169,1755996664914,-544.14084383,0.00049315,120]
[381073170,1755996664925,-480.0,0.00049315,120]
[381073171,1755996664935,-480.0,0.00049315,120]
[381073172,1755996664944,-480.0,0.00049315,120]
[381073173,1755996664954,-1481.32,0.00049315,120]
[381073174,1755996664968,-196.15466506,0.00049315,120]
[381073175,1755996664977,-480.0,0.00049315,120]
[381073176,1755996664986,-480.0,0.00049315,120]
[381073177,1755996664996,-480.0,0.00049315,120]
[381073178,1755996665010,-480.0,0.00049315,120]
[381073179,1755996665019,-480.0,0.00049315,120]
[381073180,1755996665030,-3761.42,0.00049315,120]
[381073181,1755996665039,-972.97,0.00049315,120]
[381073182,1755996665049,-480.0,0.00049315,120]
[381073183,1755996665058,-519.64,0.00049315,120]
[381073184,1755996665068,-818.6,0.00049315,120]
[381073185,1755996665078,-818.6,0.00049315,120]
[381073186,1755996665087,-818.6,0.00049315,120]
[381073187,1755996665096,-818.6,0.00049315,120]
[381073188,1755996665106,-818.6,0.00049315,120]
[381073189,1755996665115,-818.6,0.00049315,120]
[381073190,1755996665125,-1858.68,0.00049315,120]
[381073191,1755996665135,-818.6,0.00049315,120]
[381073192,1755996665144,-818.6,0.00049315,120]
[381073193,1755996665153,-480.0,0.00049315,120]
[381073194,1755996665162,-572.43,0.00049315,120]
[381073195,1755996665172,-818.6,0.00049315,120]
[381073196,1755996665182,-480.0,0.00049315,120]
[381073197,1755996665191,-818.6,0.00049315,120]
[381073198,1755996665200,-818.6,0.00049315,120]
[381073199,1755996665211,-818.6,0.00049315,120]
[381073200,1755996665220,-818.6,0.00049315,120]
[381073201,1755996665229,-818.6,0.00049315,120]
[381073202,1755996665238,-818.6,0.00049315,120]
[381073203,1755996665248,-818.6,0.00049315,120]
[381073204,1755996665257,-794.38,0.00049315,120]
[381073205,1755996665267,-818.6,0.00049315,120]
[381073206,1755996665277,-818.6,0.00049315,120]
[381073207,1755996665286,-1154.61,0.00049315,120]
[381073208,1755996665295,-818.6,0.00049315,120]
[381073209,1755996665305,-818.6,0.00049315,120]
[381073210,1755996665314,-818.6,0.00049315,120]
[381073211,1755996665323,-818.6,0.00049315,120]
[381073212,1755996665332,-15736.68705746,0.00049315,120]
[381073213,1755996665514,-3.49607158,0.00029302,7]
[381073214,1755996698147,500.57947779,0.000199,2]
[381073215,1755996698407,500.57947762,0.00021627,2]